[Event "Late-Titled-Tuesday-Blitz-March-26-2024"]
[Site "Chess.com"]
[Date "2024.03.26"]
[Round "4"]
[White "GMMikhailKazakov"]
[Black "Airquake"]
[Result "1/2-1/2"]
[WhiteElo "2477"]
[BlackElo "2674"]
[TimeControl "180+1"]
[EndTime "14:44:06 PDT"]
[Termination "Game drawn by repetition"]

1. d4 {[%clk 0:02:53.2]} 1... Nf6 {[%clk 0:02:59.6]} 2. c4 {[%clk 0:02:53.1]}
2... e6 {[%clk 0:03:00.1]} 3. Nc3 {[%clk 0:02:49.7]} 3... d5 {[%clk 0:03:00.7]}
4. cxd5 {[%clk 0:02:46.6]} 4... exd5 {[%clk 0:03:01.6]} 5. Bg5 {[%clk
0:02:45.7]} 5... Nbd7 {[%clk 0:03:01.2]} 6. e3 {[%clk 0:02:45.2]} 6... h6 {[%clk
0:03:00.7]} 7. Bh4 {[%clk 0:02:44.8]} 7... Be7 {[%clk 0:03:00.6]} 8. Bd3 {[%clk
0:02:43.3]} 8... O-O {[%clk 0:03:00.8]} 9. Nge2 {[%clk 0:02:42.4]} 9... b6
{[%clk 0:03:01.2]} 10. O-O {[%clk 0:02:40.3]} 10... Bb7 {[%clk 0:03:01.9]} 11.
f3 {[%clk 0:02:36.6]} 11... c5 {[%clk 0:03:01.6]} 12. Bf2 {[%clk 0:02:34.8]}
12... Re8 {[%clk 0:03:01.3]} 13. Ng3 {[%clk 0:02:32.2]} 13... Bf8 {[%clk
0:03:00.8]} 14. Qd2 {[%clk 0:02:28.4]} 14... Rc8 {[%clk 0:02:59.8]} 15. Rad1
{[%clk 0:02:27.4]} 15... a6 {[%clk 0:03:00]} 16. Rfe1 {[%clk 0:02:26.3]} 16...
c4 {[%clk 0:03:00.1]} 17. Bb1 {[%clk 0:02:21.5]} 17... b5 {[%clk 0:03:01]} 18.
a3 {[%clk 0:02:17.7]} 18... Qb6 {[%clk 0:03:00.2]} 19. e4 {[%clk 0:02:13.2]}
19... dxe4 {[%clk 0:03:00.4]} 20. fxe4 {[%clk 0:02:03.6]} 20... Ng4 {[%clk
0:03:00.6]} 21. h3 {[%clk 0:01:55.9]} 21... Nxf2 {[%clk 0:03:00.8]} 22. Qxf2
{[%clk 0:01:56.8]} 22... Rcd8 {[%clk 0:03:00.1]} 23. Rf1 {[%clk 0:01:48.3]}
23... Qe6 {[%clk 0:02:34.2]} 24. d5 {[%clk 0:01:16]} 24... Qe7 {[%clk
0:02:33.1]} 25. d6 {[%clk 0:00:53]} 25... Qe6 {[%clk 0:02:29.9]} 26. Nf5 {[%clk
0:00:37.5]} 26... Ne5 {[%clk 0:01:56.3]} 27. Qb6 {[%clk 0:00:19.2]} 27... Bc8
{[%clk 0:01:43.4]} 28. Nd5 {[%clk 0:00:15.9]} 28... Bxd6 {[%clk 0:01:39.2]} 29.
Nxd6 {[%clk 0:00:14.3]} 29... Rxd6 {[%clk 0:01:37.6]} 30. Nf6+ {[%clk
0:00:10.4]} 30... Qxf6 {[%clk 0:01:26]} 31. Rxf6 {[%clk 0:00:09]} 31... Rxb6
{[%clk 0:01:26.1]} 32. Rxb6 {[%clk 0:00:09]} 32... Kf8 {[%clk 0:01:16.6]} 33.
Bc2 {[%clk 0:00:08.7]} 33... Ke7 {[%clk 0:01:12.4]} 34. b3 {[%clk 0:00:08.8]}
34... c3 {[%clk 0:01:05.1]} 35. a4 {[%clk 0:00:07]} 35... bxa4 {[%clk
0:01:00.1]} 36. bxa4 {[%clk 0:00:07.9]} 36... Nc4 {[%clk 0:01:00.4]} 37. Rc6
{[%clk 0:00:07.3]} 37... Ne3 {[%clk 0:00:55.6]} 38. Rc1 {[%clk 0:00:07.3]} 38...
Bd7 {[%clk 0:00:56.3]} 39. Rxc3 {[%clk 0:00:07]} 39... Nxc2 {[%clk 0:00:56.7]}
40. R1xc2 {[%clk 0:00:07.5]} 40... Bxa4 {[%clk 0:00:57.3]} 41. Rb2 {[%clk
0:00:07.3]} 41... Bb5 {[%clk 0:00:56.3]} 42. Rd2 {[%clk 0:00:07.2]} 42... Kf6
{[%clk 0:00:54.5]} 43. Rd4 {[%clk 0:00:06]} 43... Kg6 {[%clk 0:00:51.6]} 44. Rc5
{[%clk 0:00:05.5]} 44... Re7 {[%clk 0:00:51.2]} 45. Kf2 {[%clk 0:00:05.8]} 45...
f6 {[%clk 0:00:50.4]} 46. Ke3 {[%clk 0:00:06.2]} 46... Rb7 {[%clk 0:00:50.5]}
47. g4 {[%clk 0:00:05.8]} 47... Bf1 {[%clk 0:00:50.9]} 48. h4 {[%clk 0:00:05.2]}
48... h5 {[%clk 0:00:34.3]} 49. gxh5+ {[%clk 0:00:04.9]} 49... Kh6 {[%clk
0:00:34.1]} 50. Rd2 {[%clk 0:00:03.3]} 50... Rb3+ {[%clk 0:00:31.3]} 51. Kd4
{[%clk 0:00:03.5]} 51... Rb4+ {[%clk 0:00:28.6]} 52. Ke3 {[%clk 0:00:02.3]}
52... Rb3+ {[%clk 0:00:26.8]} 53. Kd4 {[%clk 0:00:02.6]} 53... Rh3 {[%clk
0:00:24.7]} 54. Rf2 {[%clk 0:00:02.7]} 54... Bb5 {[%clk 0:00:24.1]} 55. Rf4
{[%clk 0:00:02]} 55... Rh1 {[%clk 0:00:23.5]} 56. Rc7 {[%clk 0:00:01.4]} 56...
Rd1+ {[%clk 0:00:23.7]} 57. Kc5 {[%clk 0:00:02.3]} 57... Rc1+ {[%clk 0:00:20.4]}
58. Kb6 {[%clk 0:00:03.2]} 58... Rg1 {[%clk 0:00:19.8]} 59. Re7 {[%clk
0:00:02.4]} 59... Kxh5 {[%clk 0:00:19.8]} 60. e5 {[%clk 0:00:02.7]} 60... fxe5
{[%clk 0:00:13.8]} 61. Rxe5+ {[%clk 0:00:03.6]} 61... Kh6 {[%clk 0:00:14.5]} 62.
Rd4 {[%clk 0:00:03.7]} 62... Rg6+ {[%clk 0:00:14.2]} 63. Kc5 {[%clk 0:00:03.2]}
63... Rc6+ {[%clk 0:00:14.4]} 64. Kb4 {[%clk 0:00:03.3]} 64... Rc1 {[%clk
0:00:14.3]} 65. Rde4 {[%clk 0:00:03.5]} 65... Rb1+ {[%clk 0:00:13.1]} 66. Ka5
{[%clk 0:00:03.9]} 66... Rg1 {[%clk 0:00:13]} 67. Rd4 {[%clk 0:00:03.8]} 67...
g6 {[%clk 0:00:11.2]} 68. Kb6 {[%clk 0:00:04]} 68... Rb1 {[%clk 0:00:08.9]} 69.
Ka5 {[%clk 0:00:03.7]} 69... Ra1+ {[%clk 0:00:09.3]} 70. Kb6 {[%clk 0:00:03.7]}
70... Rf1 {[%clk 0:00:09.6]} 71. Kc5 {[%clk 0:00:03.8]} 71... Rf6 {[%clk
0:00:09.1]} 72. Rd6 {[%clk 0:00:03.3]} 72... Rf1 {[%clk 0:00:08.7]} 73. Rg5
{[%clk 0:00:03]} 73... Rc1+ {[%clk 0:00:08.1]} 74. Kb6 {[%clk 0:00:03.1]} 74...
Rb1 {[%clk 0:00:05.9]} 75. Rdxg6+ {[%clk 0:00:02.8]} 75... Kh7 {[%clk
0:00:06.3]} 76. Ka7 {[%clk 0:00:03.6]} 76... Re1 {[%clk 0:00:04.2]} 77. Rg7+
{[%clk 0:00:03.8]} 77... Kh6 {[%clk 0:00:04.6]} 78. R7g6+ {[%clk 0:00:04.7]}
78... Kh7 {[%clk 0:00:05.1]} 79. Rg7+ {[%clk 0:00:05.3]} 79... Kh6 {[%clk
0:00:05.3]} 80. Rg8 {[%clk 0:00:05.8]} 80... Re7+ {[%clk 0:00:05]} 81. Kb6
{[%clk 0:00:05.6]} 81... Kh7 {[%clk 0:00:05.6]} 82. R8g6 {[%clk 0:00:05.1]}
82... Bd3 {[%clk 0:00:04.5]} 83. Rf6 {[%clk 0:00:04.4]} 83... Bb5 {[%clk
0:00:04.6]} 84. h5 {[%clk 0:00:04.2]} 84... Rd7 {[%clk 0:00:03.6]} 85. h6 {[%clk
0:00:04.1]} 85... Re7 {[%clk 0:00:04.1]} 86. Rc5 {[%clk 0:00:03.9]} 86... Re8
{[%clk 0:00:02.4]} 87. Rc7+ {[%clk 0:00:03.4]} 87... Kh8 {[%clk 0:00:03.1]} 88.
Rff7 {[%clk 0:00:03.2]} 88... Rb8+ {[%clk 0:00:02.4]} 89. Ka5 {[%clk 0:00:03]}
89... Bd3 {[%clk 0:00:02.6]} 90. Rfd7 {[%clk 0:00:03]} 90... Bb1 {[%clk
0:00:01.6]} 91. Kxa6 {[%clk 0:00:02.1]} 91... Bg6 {[%clk 0:00:02.3]} 92. Rg7
{[%clk 0:00:01.6]} 92... Bb1 {[%clk 0:00:01.8]} 93. Ka7 {[%clk 0:00:02.5]} 93...
Rd8 {[%clk 0:00:01.7]} 94. Rce7 {[%clk 0:00:02.8]} 94... Rf8 {[%clk 0:00:02]}
95. Kb6 {[%clk 0:00:03.6]} 95... Bd3 {[%clk 0:00:02.3]} 96. Kc5 {[%clk
0:00:03.6]} 96... Rc8+ {[%clk 0:00:02.8]} 97. Kd4 {[%clk 0:00:04]} 97... Rd8+
{[%clk 0:00:03.4]} 98. Ke5 {[%clk 0:00:04.6]} 98... Bb1 {[%clk 0:00:03.3]} 99.
Kf6 {[%clk 0:00:04.7]} 99... Ra8 {[%clk 0:00:03.4]} 100. Rg5 {[%clk 0:00:04.6]}
100... Ra6+ {[%clk 0:00:03.1]} 101. Re6 {[%clk 0:00:04.8]} 101... Rxe6+ {[%clk
0:00:02.5]} 102. Kxe6 {[%clk 0:00:05.7]} 102... Kh7 {[%clk 0:00:03.2]} 103. Rh5
{[%clk 0:00:06]} 103... Kh8 {[%clk 0:00:03.8]} 104. Rh4 {[%clk 0:00:06.3]}
104... Bc2 {[%clk 0:00:03.9]} 105. Rh2 {[%clk 0:00:06.5]} 105... Bb1 {[%clk
0:00:04.3]} 106. Kf6 {[%clk 0:00:07]} 106... Bd3 {[%clk 0:00:04.3]} 107. Kg5
{[%clk 0:00:06.9]} 107... Bb1 {[%clk 0:00:04.5]} 108. Rd2 {[%clk 0:00:06.9]}
108... Be4 {[%clk 0:00:04.5]} 109. Rd7 {[%clk 0:00:06.4]} 109... Bb1 {[%clk
0:00:04.5]} 110. Kf6 {[%clk 0:00:05.7]} 110... Bc2 {[%clk 0:00:04.4]} 111. Rc7
{[%clk 0:00:06]} 111... Bb1 {[%clk 0:00:04.7]} 112. Kg5 {[%clk 0:00:06.5]}
112... Bd3 {[%clk 0:00:05.3]} 113. Rg7 {[%clk 0:00:06.6]} 113... Bb1 {[%clk
0:00:04.3]} 114. Kf6 {[%clk 0:00:07]} 114... Bc2 {[%clk 0:00:04.9]} 115. Kg5
{[%clk 0:00:07.5]} 115... Bb1 {[%clk 0:00:05.5]} 116. Rb7 {[%clk 0:00:07.6]}
116... Bd3 {[%clk 0:00:05.8]} 117. Ra7 {[%clk 0:00:08.2]} 117... Bc2 {[%clk
0:00:06.3]} 118. Rb7 {[%clk 0:00:08.2]} 118... Bd3 {[%clk 0:00:06.5]} 119. Kf6
{[%clk 0:00:07.2]} 119... Bc2 {[%clk 0:00:07]} 120. Kg5 {[%clk 0:00:07.2]}
120... Bd3 {[%clk 0:00:07.3]} 1/2-1/2

[Event "Late-Titled-Tuesday-Blitz-March-26-2024"]
[Site "Chess.com"]
[Date "2024.03.26"]
[Round "5"]
[White "Nechitaylo_Nikita"]
[Black "MoldyTofu"]
[Result "1-0"]
[WhiteElo "2360"]
[BlackElo "2052"]
[TimeControl "180+1"]
[EndTime "14:52:36 PDT"]
[Termination "Nechitaylo_Nikita won by resignation"]

1. d4 {[%clk 0:03:00.9]} 1... Nf6 {[%clk 0:02:59.7]} 2. c4 {[%clk 0:03:00.1]}
2... g6 {[%clk 0:03:00.2]} 3. f3 {[%clk 0:02:55.3]} 3... d6 {[%clk 0:02:59.6]}
4. e4 {[%clk 0:02:55.1]} 4... Bg7 {[%clk 0:02:56.9]} 5. Nc3 {[%clk 0:02:55.6]}
5... Nbd7 {[%clk 0:02:57.1]} 6. Nge2 {[%clk 0:02:55.6]} 6... e5 {[%clk
0:02:56.5]} 7. d5 {[%clk 0:02:54.8]} 7... a5 {[%clk 0:02:56.1]} 8. Be3 {[%clk
0:02:52.6]} 8... O-O {[%clk 0:02:53.2]} 9. Qd2 {[%clk 0:02:51.9]} 9... Nc5
{[%clk 0:02:52.5]} 10. g4 {[%clk 0:02:50.8]} 10... Nfd7 {[%clk 0:02:52.6]} 11.
h4 {[%clk 0:02:46]} 11... f5 {[%clk 0:02:44.4]} 12. gxf5 {[%clk 0:02:41.4]}
12... gxf5 {[%clk 0:02:45.3]} 13. Bh6 {[%clk 0:02:37.7]} 13... f4 {[%clk
0:02:42.3]} 14. Rg1 {[%clk 0:02:37.2]} 14... Rf7 {[%clk 0:02:41.8]} 15. Bg5
{[%clk 0:02:20.2]} 15... Qe8 {[%clk 0:02:32.6]} 16. O-O-O {[%clk 0:02:15.1]}
16... h6 {[%clk 0:02:32.7]} 17. Bxh6 {[%clk 0:02:14.7]} 17... a4 {[%clk
0:02:31.2]} 18. Bh3 {[%clk 0:02:00.2]} 18... a3 {[%clk 0:02:29.3]} 1-0

[Event "Late-Titled-Tuesday-Blitz-March-26-2024"]
[Site "Chess.com"]
[Date "2024.03.26"]
[Round "5"]
[White "mishanick"]
[Black "steepedgames"]
[Result "1-0"]
[WhiteElo "3037"]
[BlackElo "2529"]
[TimeControl "180+1"]
[EndTime "14:53:02 PDT"]
[Termination "mishanick won by resignation"]

1. d4 {[%clk 0:02:54.7]} 1... f5 {[%clk 0:02:59.4]} 2. Bg5 {[%clk 0:02:47.6]}
2... h6 {[%clk 0:02:58.8]} 3. Bh4 {[%clk 0:02:47.5]} 3... g5 {[%clk 0:02:58.7]}
4. Bg3 {[%clk 0:02:46.6]} 4... Bg7 {[%clk 0:02:58.8]} 5. e3 {[%clk 0:02:46.3]}
5... Nf6 {[%clk 0:02:58.9]} 6. h4 {[%clk 0:02:46.6]} 6... d6 {[%clk 0:02:58.3]}
7. Bd3 {[%clk 0:02:45.2]} 7... Nc6 {[%clk 0:02:57.1]} 8. Nd2 {[%clk 0:02:44.9]}
8... e5 {[%clk 0:02:53.8]} 9. c3 {[%clk 0:02:43.8]} 9... Qe7 {[%clk 0:02:47]}
10. hxg5 {[%clk 0:02:36.4]} 10... hxg5 {[%clk 0:02:46]} 11. Rxh8+ {[%clk
0:02:35.7]} 11... Bxh8 {[%clk 0:02:46.9]} 12. d5 {[%clk 0:02:34]} 12... Nd8
{[%clk 0:02:41.8]} 13. c4 {[%clk 0:02:34.1]} 13... f4 {[%clk 0:02:30.1]} 14. Bh2
{[%clk 0:02:32.8]} 14... fxe3 {[%clk 0:02:23.1]} 15. fxe3 {[%clk 0:02:32.2]}
15... Bg4 {[%clk 0:02:22.6]} 16. Bg6+ {[%clk 0:02:29.8]} 16... Nf7 {[%clk
0:02:15.1]} 17. Qa4+ {[%clk 0:02:27.1]} 17... Qd7 {[%clk 0:02:10]} 18. Qxd7+
{[%clk 0:02:24.6]} 18... Bxd7 {[%clk 0:01:48]} 19. Ngf3 {[%clk 0:02:25.5]} 19...
g4 {[%clk 0:01:40.5]} 20. Ng5 {[%clk 0:02:23.7]} 1-0

[Event "Late-Titled-Tuesday-Blitz-March-26-2024"]
[Site "Chess.com"]
[Date "2024.03.26"]
[Round "5"]
[White "enriquebutti"]
[Black "UK_23"]
[Result "0-1"]
[WhiteElo "2189"]
[BlackElo "2390"]
[TimeControl "180+1"]
[EndTime "14:53:27 PDT"]
[Termination "UK_23 won by resignation"]

1. d4 {[%clk 0:03:00.4]} 1... d5 {[%clk 0:02:59.8]} 2. c4 {[%clk 0:02:59.4]}
2... e6 {[%clk 0:02:59]} 3. Nf3 {[%clk 0:02:58.8]} 3... Nf6 {[%clk 0:02:58.3]}
4. Nc3 {[%clk 0:02:57.5]} 4... Be7 {[%clk 0:02:58]} 5. e3 {[%clk 0:02:57.1]}
5... O-O {[%clk 0:02:56.9]} 6. b3 {[%clk 0:02:56.7]} 6... a6 {[%clk 0:02:55.6]}
7. Bd3 {[%clk 0:02:55.8]} 7... b6 {[%clk 0:02:55.4]} 8. Bb2 {[%clk 0:02:55.4]}
8... Bb7 {[%clk 0:02:55.5]} 9. O-O {[%clk 0:02:54.4]} 9... Nbd7 {[%clk
0:02:55.6]} 10. Qe2 {[%clk 0:02:53.6]} 10... c5 {[%clk 0:02:54.6]} 11. Rad1
{[%clk 0:02:52.6]} 11... Ra7 {[%clk 0:02:49.6]} 12. Ne5 {[%clk 0:02:50.8]} 12...
dxc4 {[%clk 0:02:44.3]} 13. bxc4 {[%clk 0:02:50]} 13... Qa8 {[%clk 0:02:41.1]}
14. Nxd7 {[%clk 0:02:47.8]} 14... Nxd7 {[%clk 0:02:40.4]} 15. d5 {[%clk
0:02:47.4]} 15... exd5 {[%clk 0:02:35.7]} 16. cxd5 {[%clk 0:02:46.9]} 16... Nf6
{[%clk 0:02:27.7]} 17. e4 {[%clk 0:02:46]} 17... Re8 {[%clk 0:02:24.6]} 18. a4
{[%clk 0:02:36.4]} 18... Bd6 {[%clk 0:01:58.2]} 19. Bc4 {[%clk 0:02:31.5]} 19...
Be5 {[%clk 0:01:48]} 20. f3 {[%clk 0:02:17.6]} 20... Qb8 {[%clk 0:01:47]} 21.
Qf2 {[%clk 0:02:08.3]} 21... Bxh2+ {[%clk 0:01:39.4]} 0-1

[Event "Late-Titled-Tuesday-Blitz-March-26-2024"]
[Site "Chess.com"]
[Date "2024.03.26"]
[Round "5"]
[White "Defenstrator"]
[Black "akanga001"]
[Result "0-1"]
[WhiteElo "2470"]
[BlackElo "2089"]
[TimeControl "180+1"]
[EndTime "14:53:33 PDT"]
[Termination "akanga001 won by checkmate"]

1. f3 {[%clk 0:03:00.1]} 1... d5 {[%clk 0:02:56.9]} 2. c3 {[%clk 0:02:59.7]}
2... Bf5 {[%clk 0:02:55.8]} 3. Kf2 {[%clk 0:02:56.9]} 3... Nf6 {[%clk
0:02:55.4]} 4. Ke3 {[%clk 0:02:56.9]} 4... h6 {[%clk 0:02:54.9]} 5. Kf4 {[%clk
0:02:54.3]} 5... Bh7 {[%clk 0:02:53.9]} 6. Kg3 {[%clk 0:02:54]} 6... e6 {[%clk
0:02:52.7]} 7. Kf2 {[%clk 0:02:54.6]} 7... c6 {[%clk 0:02:51.4]} 8. e3 {[%clk
0:02:51.9]} 8... Nbd7 {[%clk 0:02:51.6]} 9. Qe2 {[%clk 0:02:51]} 9... a5 {[%clk
0:02:51.6]} 10. Ke1 {[%clk 0:02:51.4]} 10... Qb6 {[%clk 0:02:51]} 11. Kd1 {[%clk
0:02:50.8]} 11... Bc5 {[%clk 0:02:49.3]} 12. Qe1 {[%clk 0:02:48]} 12... a4
{[%clk 0:02:47.5]} 13. d4 {[%clk 0:02:47.3]} 13... Bd6 {[%clk 0:02:47.1]} 14.
Nd2 {[%clk 0:02:43]} 14... e5 {[%clk 0:02:47.2]} 15. Nh3 {[%clk 0:02:39.6]}
15... O-O {[%clk 0:02:45.1]} 16. Nf2 {[%clk 0:02:38.4]} 16... exd4 {[%clk
0:02:45.2]} 17. cxd4 {[%clk 0:02:32.7]} 17... Rfe8 {[%clk 0:02:44.9]} 18. Bd3
{[%clk 0:02:32.1]} 18... Bxd3 {[%clk 0:02:40.3]} 19. Nxd3 {[%clk 0:02:32.5]}
19... c5 {[%clk 0:02:39.6]} 20. dxc5 {[%clk 0:02:25.4]} 20... Nxc5 {[%clk
0:02:39.2]} 21. Nxc5 {[%clk 0:02:23.5]} 21... Bxc5 {[%clk 0:02:38.7]} 22. Nf1
{[%clk 0:02:24]} 22... d4 {[%clk 0:02:37.8]} 23. e4 {[%clk 0:02:23.3]} 23... Nd5
{[%clk 0:02:36.4]} 24. Qg3 {[%clk 0:02:14.7]} 24... Ne3+ {[%clk 0:02:32.8]} 25.
Nxe3 {[%clk 0:02:12.5]} 25... dxe3 {[%clk 0:02:33.7]} 26. Ke2 {[%clk 0:02:09.9]}
26... Rad8 {[%clk 0:02:34.1]} 27. Qf4 {[%clk 0:01:46.8]} 27... Qb5+ {[%clk
0:02:33]} 28. Ke1 {[%clk 0:01:43.2]} 28... Bb4+ {[%clk 0:02:31.9]} 29. Bd2
{[%clk 0:01:39.3]} 29... Rxd2 {[%clk 0:02:28]} 30. a3 {[%clk 0:01:37.4]} 30...
Qe2# {[%clk 0:02:27.4]} 0-1

[Event "Late-Titled-Tuesday-Blitz-March-26-2024"]
[Site "Chess.com"]
[Date "2024.03.26"]
[Round "5"]
[White "Siemba"]
[Black "NMJeevanK"]
[Result "0-1"]
[WhiteElo "2452"]
[BlackElo "2620"]
[TimeControl "180+1"]
[EndTime "14:53:40 PDT"]
[Termination "NMJeevanK won by resignation"]

1. e4 {[%clk 0:03:00.9]} 1... Nc6 {[%clk 0:02:45.4]} 2. d4 {[%clk 0:03:00.2]}
2... d6 {[%clk 0:02:45.8]} 3. Nc3 {[%clk 0:02:59.7]} 3... g6 {[%clk 0:02:46.3]}
4. Nf3 {[%clk 0:02:59.4]} 4... Bg7 {[%clk 0:02:46.2]} 5. Be3 {[%clk 0:02:59.9]}
5... Nf6 {[%clk 0:02:46.4]} 6. Qd2 {[%clk 0:02:59.4]} 6... O-O {[%clk
0:02:44.7]} 7. Bh6 {[%clk 0:02:57.9]} 7... e5 {[%clk 0:02:43.1]} 8. Bxg7 {[%clk
0:02:57.6]} 8... Kxg7 {[%clk 0:02:44]} 9. d5 {[%clk 0:02:55.8]} 9... Ne7 {[%clk
0:02:40.6]} 10. h3 {[%clk 0:02:56]} 10... h5 {[%clk 0:02:32.9]} 11. O-O-O {[%clk
0:02:49.1]} 11... a6 {[%clk 0:02:25.2]} 12. Bd3 {[%clk 0:02:33.7]} 12... b5
{[%clk 0:02:24.1]} 13. Rdg1 {[%clk 0:02:25.1]} 13... Rh8 {[%clk 0:02:21.1]} 14.
Qg5 {[%clk 0:02:15.4]} 14... c5 {[%clk 0:02:07.2]} 15. Nd2 {[%clk 0:01:55.1]}
15... c4 {[%clk 0:02:04]} 16. Be2 {[%clk 0:01:55.4]} 16... b4 {[%clk 0:02:04]}
17. Nd1 {[%clk 0:01:55]} 17... c3 {[%clk 0:02:03.8]} 18. bxc3 {[%clk 0:01:54.7]}
18... bxc3 {[%clk 0:02:04]} 19. Nxc3 {[%clk 0:01:55.2]} 19... Qa5 {[%clk
0:02:03.6]} 20. Kb2 {[%clk 0:01:49.4]} 20... Rb8+ {[%clk 0:01:57.5]} 21. Nb3
{[%clk 0:01:49.7]} 21... Qxc3+ {[%clk 0:01:57.4]} 22. Kxc3 {[%clk 0:01:50.6]}
22... Nxe4+ {[%clk 0:01:57.5]} 23. Kd3 {[%clk 0:01:44.4]} 23... Nxg5 {[%clk
0:01:58.4]} 24. h4 {[%clk 0:01:43.3]} 24... Bf5+ {[%clk 0:01:57.3]} 25. Ke3
{[%clk 0:01:42]} 25... Nxd5+ {[%clk 0:01:56.2]} 26. Kd2 {[%clk 0:01:42]} 26...
Ne4+ {[%clk 0:01:56.5]} 0-1

[Event "Late-Titled-Tuesday-Blitz-March-26-2024"]
[Site "Chess.com"]
[Date "2024.03.26"]
[Round "5"]
[White "chessablanca"]
[Black "eljanov"]
[Result "0-1"]
[WhiteElo "2664"]
[BlackElo "2903"]
[TimeControl "180+1"]
[EndTime "14:55:00 PDT"]
[Termination "eljanov won by resignation"]

1. d4 {[%clk 0:03:00.9]} 1... d5 {[%clk 0:02:58.4]} 2. c4 {[%clk 0:03:01.8]}
2... e6 {[%clk 0:02:58.3]} 3. Nc3 {[%clk 0:03:01.6]} 3... Nf6 {[%clk 0:02:58.9]}
4. cxd5 {[%clk 0:03:02.2]} 4... exd5 {[%clk 0:02:59.8]} 5. Bg5 {[%clk
0:03:02.3]} 5... c6 {[%clk 0:02:59.4]} 6. e3 {[%clk 0:03:02.9]} 6... h6 {[%clk
0:02:55.6]} 7. Bh4 {[%clk 0:03:02.5]} 7... Be7 {[%clk 0:02:55.2]} 8. Bd3 {[%clk
0:03:03]} 8... O-O {[%clk 0:02:54.9]} 9. Nge2 {[%clk 0:03:00]} 9... Ne4 {[%clk
0:02:52.6]} 10. Bxe7 {[%clk 0:02:58.9]} 10... Qxe7 {[%clk 0:02:52.4]} 11. O-O
{[%clk 0:02:58.5]} 11... Nd7 {[%clk 0:02:47.9]} 12. Re1 {[%clk 0:02:54.4]} 12...
Re8 {[%clk 0:02:40.3]} 13. f3 {[%clk 0:02:52.7]} 13... Nxc3 {[%clk 0:02:40.1]}
14. Nxc3 {[%clk 0:02:53.6]} 14... Nb6 {[%clk 0:02:37.5]} 15. Rc1 {[%clk
0:02:36]} 15... Be6 {[%clk 0:02:37.2]} 16. a3 {[%clk 0:02:28.3]} 16... Rad8
{[%clk 0:02:35.6]} 17. b4 {[%clk 0:02:25.2]} 17... Nc4 {[%clk 0:02:35.7]} 18.
Bxc4 {[%clk 0:02:16.5]} 18... dxc4 {[%clk 0:02:35.4]} 19. Ne4 {[%clk 0:02:14.8]}
19... Bd5 {[%clk 0:02:27.9]} 20. Nc3 {[%clk 0:02:13.4]} 20... b5 {[%clk
0:02:26.6]} 21. Qd2 {[%clk 0:02:01.4]} 21... a5 {[%clk 0:02:23.2]} 22. Na2
{[%clk 0:01:38.8]} 22... Ra8 {[%clk 0:02:09.7]} 23. e4 {[%clk 0:01:35.1]} 23...
Be6 {[%clk 0:02:09.5]} 24. d5 {[%clk 0:01:32.1]} 24... Red8 {[%clk 0:02:05.7]}
25. bxa5 {[%clk 0:01:01.9]} 25... cxd5 {[%clk 0:02:05.6]} 26. Qb4 {[%clk
0:00:57.6]} 26... Qa7+ {[%clk 0:02:02.9]} 27. Kh1 {[%clk 0:00:57.2]} 27... d4
{[%clk 0:02:02.2]} 28. Qxb5 {[%clk 0:00:56.9]} 28... Qxa5 {[%clk 0:01:55.7]} 29.
Qb7 {[%clk 0:00:52.1]} 29... Qxa3 {[%clk 0:01:52]} 30. Ra1 {[%clk 0:00:51.2]}
30... c3 {[%clk 0:01:49.2]} 31. f4 {[%clk 0:00:44.6]} 31... Bxa2 {[%clk
0:01:46.9]} 0-1

[Event "Late-Titled-Tuesday-Blitz-March-26-2024"]
[Site "Chess.com"]
[Date "2024.03.26"]
[Round "5"]
[White "giovannibrandao7"]
[Black "LeninGuerra"]
[Result "0-1"]
[WhiteElo "2160"]
[BlackElo "2674"]
[TimeControl "180+1"]
[EndTime "14:55:00 PDT"]
[Termination "LeninGuerra won by resignation"]

1. e4 {[%clk 0:02:59.1]} 1... c5 {[%clk 0:03:00.9]} 2. Nf3 {[%clk 0:02:58.8]}
2... e6 {[%clk 0:03:01.4]} 3. d4 {[%clk 0:02:58.2]} 3... cxd4 {[%clk 0:03:02.3]}
4. Nxd4 {[%clk 0:02:58.2]} 4... Nc6 {[%clk 0:03:03.2]} 5. Nc3 {[%clk 0:02:58.6]}
5... Qc7 {[%clk 0:03:03.5]} 6. Be3 {[%clk 0:02:55.3]} 6... a6 {[%clk 0:03:03.7]}
7. Be2 {[%clk 0:02:55.1]} 7... Nxd4 {[%clk 0:03:03.4]} 8. Bxd4 {[%clk
0:02:54.6]} 8... Ne7 {[%clk 0:03:03.8]} 9. O-O {[%clk 0:02:54.2]} 9... b5 {[%clk
0:03:03.9]} 10. Bf3 {[%clk 0:02:52.3]} 10... Bb7 {[%clk 0:03:04]} 11. Qd3 {[%clk
0:02:45.1]} 11... Ng6 {[%clk 0:03:03.3]} 12. g3 {[%clk 0:02:41.8]} 12... h5
{[%clk 0:03:01.9]} 13. Bg2 {[%clk 0:02:32.2]} 13... h4 {[%clk 0:03:01.6]} 14. f4
{[%clk 0:02:31.9]} 14... hxg3 {[%clk 0:03:01.5]} 15. hxg3 {[%clk 0:02:31.9]}
15... Bc5 {[%clk 0:03:00.8]} 16. Rad1 {[%clk 0:02:21.2]} 16... Rc8 {[%clk
0:02:40.1]} 17. a3 {[%clk 0:02:18.1]} 17... Qb6 {[%clk 0:02:14.4]} 18. Qe3
{[%clk 0:02:11.6]} 18... Bxd4 {[%clk 0:02:03.1]} 19. Qxd4 {[%clk 0:02:11.2]}
19... Qxd4+ {[%clk 0:02:03.1]} 20. Rxd4 {[%clk 0:02:12.1]} 20... Rc5 {[%clk
0:02:00.3]} 21. Rd6 {[%clk 0:02:06.8]} 21... Ke7 {[%clk 0:01:56.3]} 22. Rb6
{[%clk 0:02:05.7]} 22... Rc7 {[%clk 0:01:52.9]} 23. e5 {[%clk 0:01:50.8]} 23...
Bxg2 {[%clk 0:01:52.1]} 24. Kxg2 {[%clk 0:01:51.7]} 24... Ra8 {[%clk 0:01:51.5]}
25. Rf2 {[%clk 0:01:36.1]} 25... f5 {[%clk 0:01:48.3]} 26. Rd2 {[%clk
0:01:34.7]} 26... Ke8 {[%clk 0:01:44.2]} 27. Kf3 {[%clk 0:01:22.8]} 27... Ne7
{[%clk 0:01:44.7]} 28. Rbd6 {[%clk 0:01:02.7]} 28... Nc8 {[%clk 0:01:44.4]} 29.
R6d3 {[%clk 0:01:00.5]} 29... Nb6 {[%clk 0:01:44.9]} 30. Rh2 {[%clk 0:00:54.1]}
30... Kf7 {[%clk 0:01:44.7]} 31. Rd6 {[%clk 0:00:49.7]} 31... Nc4 {[%clk
0:01:43]} 0-1